Workbook

Sheet MSU
B1: Aatu Pulliainen | E1: 3.10.2004 Imatra
B2: SUPERPESIS | E2: Runkosarja | I2: Kärkilyönnit (KL), pesänvälit | P2: Runkosarja TOP-30 | U2: Ylempi loppusarja | AB2: Ylempi loppusarja TOP-10 | AG2: Play off, voitot, voittoprosentti | AL2: Arvo-ottelut | AO2: Mitalit
B3: Vuosi | C3: Sija | D3: Seura | E3: OTT | F3: KUN | G3: LÖI | H3: TOI | I3: KL | J3: 0 > 1 | K3: 1 > 2 | L3: 2 > 3 | M3: 3 > k | N3: KL-% | P3: LÖI | Q3: TOI | R3: L+T | S3: KL | U3: OTT | V3: KUN | W3: LÖI | X3: TOI | Y3: KL | Z3: KL-% | AB3: LÖI | AC3: TOI | AD3: L+T | AE3: KL | AG3: Puolivälierät | AH3: Välierät | AI3: Pronssi | AJ3: Finaalit | AL3: IL | AM3: LL | AN3: hSM | AO3: K | AP3: H | AQ3: P
B4: 2019 | C4: 7. | D4: IPV 2 | F4: suomensarja
B5: 2020 | C5: 7. | D5: IPV 2 | F5: suomensarja
B6: 2021 | C6: 5. | D6: IPV 2 | F6: suomensarja
B7: 2022 | C7: 2. | D7: IPV 2 | F7: suomensarja
B8: 2023 | C8: 7. | D8: IPV 2 | F8: suomensarja
B9: 2023 | C9: 11. | D9: IPV | E9: 6 | F9: 0 | G9: 0 | H9: 0 | I9: 0 | J9: 0 | K9: 0 | L9: 0 | M9: 0 | N9: 0.0 % | O9: 1
B10: Yhteensä | E10: =SUM(E4:E9) -> 6 | F10: 0 | G10: 0 | H10: 0 | I10: 0 | J10: 0 | K10: 0 | L10: 0 | M10: 0 | N10: =PRODUCT(I10/O10) -> 0.0 % | O10: =SUM(O3:O9) -> 1 | P10: 0-0-0 | Q10: 0-0-0 | R10: 0-0-0 | S10: 0-0-0 | U10: =SUM(U4:U9) -> 0 | V10: =SUM(V4:V9) -> 0 | W10: =SUM(W4:W9) -> 0 | X10: =SUM(X4:X9) -> 0 | Y10: =SUM(Y4:Y9) -> 0 | Z10: =PRODUCT(N16) -> 0.0 % | AA10: =SUM(AA9) -> 0 | AB10: 0-0-0 | AC10: 0-0-0 | AD10: 0-0-0 | AE10: 0-0-0 | AG10: 0/0 | AH10: 0/0 | AI10: 0/0 | AJ10: 0/0 | AL10: =SUM(AL4:AL9) -> 0 | AM10: 0 | AN10: 0 | AO10: 0 | AP10: 0 | AQ10: 0
AG11: 0.0 % | AH11: 0.0 % | AI11: 0.0 % | AJ11: 0.0 %
B12: Pesispörssi | D12: =SUM(F10:H10)+((I10-F10-G10)/3)+(E10/3)+(AL10*25)+(AM10*25)+(AN10*10)+(AO10*25)+(AP10*20)+(AQ10*15) -> 2.0
B14: URA SUPERISSA | E14: OTT | F14: KUN | G14: LÖI | H14: TOI | I14: KL | K14: ka/L | L14: ka/T | M14: ka/KL | N14: KL-% | P14: ENSIMMÄISET RUNKOSARJASSA | AG14: ENSIMMÄISET PUDOTUSPELEISSÄ | AL14: YLEISÖ
B15: Runkosarja | E15: =PRODUCT(E10) -> 6 | F15: =PRODUCT(F10) -> 0 | G15: =PRODUCT(G10) -> 0 | H15: =PRODUCT(H10) -> 0 | I15: =PRODUCT(I10) -> 0 | K15: =PRODUCT((F15+G15)/E15) -> 0.00 | L15: =PRODUCT(H15/E15) -> 0.00 | M15: =PRODUCT(I15/E15) -> 0.00 | N15: =PRODUCT(N10) -> 0.0 % | O15: =PRODUCT(O10) -> 1 | P15: Ottelu | R15: 31.05. 2023 IPV - KiPa 1-2 (2-5, 3-2, 0-1) | Z15: 1. ottelu | AC15: 18 v 7 kk 28 pv | AG15: Ottelu
B16: Ylempi loppusarja | P16: Lyöty | AG16: Lyöty
B17: Alempi loppusarja | P17: Tuotu | AG17: Tuotu
B18: KAIKKI | E18: =SUM(E15:E17) -> 6 | F18: =SUM(F15:F17) -> 0 | G18: =SUM(G15:G17) -> 0 | H18: =SUM(H15:H17) -> 0 | I18: =SUM(I15:I17) -> 0 | K18: =PRODUCT((F18+G18)/E18) -> 0.00 | L18: =PRODUCT(H18/E18) -> 0.00 | M18: =PRODUCT(I18/E18) -> 0.00 | N18: =PRODUCT(I18/O18) -> 0.0 % | O18: =SUM(O15:O17) -> 1 | P18: Kunnari | AG18: Kunnari
O19: =SUM(O16:O18) -> 1
B20: Seurat | D20: IPV = Imatran Pallo-Veikot (1955), kasvattajaseura

Sheet MSS
B1: Aatu Pulliainen | E1: 3.10.2004 Imatra
B2: YKKÖSPESIS | E2: Runkosarja | L2: Runkosarja TOP-10 | Q2: Jatkosarjat | X2: SUOMENSARJA | AA2: Runkosarja | AH2: Runkosarja TOP-10 | AM2: Jatkosarjat
B3: Vuosi | C3: Sija | D3: Seura | E3: OTT | F3: KUN | G3: LÖI | H3: TOI | I3: KL | J3: KL-% | L3: LÖI | M3: TOI | N3: L+T | O3: KL | Q3: OTT | R3: KUN | S3: LÖI | T3: TOI | U3: KL | V3: KL-% | X3: Vuosi | Y3: Sija | Z3: Seura | AA3: OTT | AB3: KUN | AC3: LÖI | AD3: TOI | AE3: KL | AF3: KL-% | AH3: LÖI | AI3: TOI | AJ3: L+T | AK3: KL | AM3: OTT | AN3: KUN | AO3: LÖI | AP3: TOI | AQ3: KL | AR3: KL-%
X4: 2019 | Y4: 7. | Z4: IPV 2 | AA4: 1 | AB4: 0 | AC4: 0 | AD4: 0 | AE4: 0 | AF4: 0.0 % | AG4: 6
X5: 2020 | Y5: 7. | Z5: IPV 2 | AA5: 3 | AB5: 0 | AC5: 1 | AD5: 0 | AE5: 1 | AF5: 10.0 % | AG5: 10
X6: 2021 | Y6: 5. | Z6: IPV 2 | AA6: 10 | AB6: 1 | AC6: 8 | AD6: 11 | AE6: 49 | AF6: 65.3 % | AG6: 75
X7: 2022 | Y7: 2. | Z7: IPV 2 | AA7: 8 | AB7: 1 | AC7: 9 | AD7: 6 | AE7: 42 | AF7: 72.4 % | AG7: 58 | AM7: 5 | AN7: 0 | AO7: 0 | AP7: 1 | AQ7: 8 | AR7: 47.1 % | AS7: 17
B9: YHTEENSÄ | E9: =SUM(E8:E8) -> 0 | F9: =SUM(F8:F8) -> 0 | G9: =SUM(G8:G8) -> 0 | H9: =SUM(H8:H8) -> 0 | I9: =SUM(I8:I8) -> 0 | J9: 0.0 % | K9: =SUM(K8:K8) -> 0 | Q9: =SUM(Q8:Q8) -> 0 | R9: =SUM(R8:R8) -> 0 | S9: =SUM(S8:S8) -> 0 | T9: =SUM(T8:T8) -> 0 | U9: =SUM(U8:U8) -> 0 | V9: 0.0 % | W9: =SUM(W8:W8) -> 0 | X9: YHTEENSÄ | AA9: =SUM(AA4:AA8) -> 22 | AB9: =SUM(AB4:AB8) -> 2 | AC9: 18 | AD9: 17 | AE9: 92 | AF9: =PRODUCT(AE9/AG9) -> 61.7 % | AG9: 149 | AM9: =SUM(AM4:AM8) -> 5 | AN9: 0 | AO9: 0 | AP9: 1 | AQ9: 8 | AR9: =PRODUCT(AQ9/AS9) -> 47.1 % | AS9: =SUM(AS4:AS8) -> 17
B11: KAIKKI OTTELUT | E11: OTT | F11: KUN | G11: LÖI | H11: TOI | I11: KL | J11: KL-% | L11: ka/L | M11: ka/T | N11: ka/l+t | O11: ka/kl | R11: Seurat | T11: IPV = Imatran Pallo-Veikot (1955), kasvattajaseura
B12: SUPERPESIS | E12: 6 | F12: 0 | G12: 0 | H12: 0 | I12: 0 | J12: 0.0 % | K12: 1 | L12: 0.00 | M12: 0.00 | N12: 0.00 | O12: 0.00
B13: YKKÖSPESIS | E13: =PRODUCT(E9+Q9) -> 0 | F13: =PRODUCT(F9+R9) -> 0 | G13: =PRODUCT(G9+S9) -> 0 | H13: =PRODUCT(H9+T9) -> 0 | I13: =PRODUCT(I9+U9) -> 0 | J13: 0.0 % | K13: =PRODUCT(K9+W9) -> 0 | L13: 0.00 | M13: 0.00 | N13: 0.00 | O13: 0.00
B14: SUOMENSARJA | E14: =PRODUCT(AA9+AM9) -> 27 | F14: =PRODUCT(AB9+AN9) -> 2 | G14: =PRODUCT(AC9+AO9) -> 18 | H14: =PRODUCT(AD9+AP9) -> 18 | I14: =PRODUCT(AE9+AQ9) -> 100 | J14: =PRODUCT(I14/K14) -> 60.2 % | K14: =PRODUCT(AG9+AS9) -> 166 | L14: =PRODUCT((F14+G14)/E14) -> 0.74 | M14: =PRODUCT(H14/E14) -> 0.67 | N14: =PRODUCT((F14+G14+H14)/E14) -> 1.41 | O14: =PRODUCT(I14/E14) -> 3.70
B15: YHTEENSÄ | E15: =SUM(E12:E14) -> 33 | F15: =SUM(F12:F14) -> 2 | G15: 18 | H15: 18 | I15: 100 | J15: =PRODUCT(I15/K15) -> 59.9 % | K15: =SUM(K12:K14) -> 167 | L15: =PRODUCT((F15+G15)/E15) -> 0.61 | M15: =PRODUCT(H15/E15) -> 0.55 | N15: =PRODUCT((F15+G15+H15)/E15) -> 1.15 | O15: =PRODUCT(I15/E15) -> 3.03

Sheet Kärkilyönnit
B1: KÄRKILYÖNNIT RUNKOSARJASSA | V1: VUOSITTAISET SIJOITUKSET TOP - 30
G2: 0 > 1 | J2: 1 > 2 | M2: 2 > 3 | P2: 3 > k | S2: Yhteensä
B3: Vuosi | C3: Sija | D3: Seura | E3: OTT | F3: KL | G3: YHT | H3: % | I3: KL | J3: YHT | K3: % | L3: KL | M3: YHT | N3: % | O3: KL | P3: YHT | Q3: % | R3: KL | S3: YHT | T3: % | V3: Vuosi | W3: Sija | X3: Seura | Y3: 0 > 1 | Z3: 1 > 2 | AA3: 2 > 3 | AB3: 3 > k | AC3: KL
B5: 2023 | C5: 11. | D5: IPV | E5: 6 | F5: 0 | G5: 1 | H5: 0.0 % | I5: 0 | J5: 0 | K5: 0.0 % | L5: 0 | M5: 0 | N5: 0.0 % | O5: 0 | P5: 0 | Q5: 0.0 % | R5: 0 | S5: 1 | T5: 0.0 % | V5: 2023 | W5: 11. | X5: IPV
B6: Yhteensä | E6: =SUM(E4:E5) -> 6 | F6: =SUM(F4:F5) -> 0 | G6: =SUM(G4:G5) -> 1 | H6: =PRODUCT(F6/G6) -> 0.0 % | I6: =SUM(I4:I5) -> 0 | J6: =SUM(J4:J5) -> 0 | K6: =PRODUCT(I6/J6) ->  | L6: =SUM(L4:L5) -> 0 | M6: =SUM(M4:M5) -> 0 | N6: =PRODUCT(L6/M6) ->  | O6: =SUM(O4:O5) -> 0 | P6: =SUM(P4:P5) -> 0 | Q6: =PRODUCT(O6/P6) ->  | R6: =SUM(R4:R5) -> 0 | S6: =SUM(S4:S5) -> 1 | T6: =PRODUCT(R6/S6) -> 0.0 %
B8: KÄRKILYÖNNIT YLEMMISSÄ PUDOTUSPELEISSÄ | V8: VUOSITTAISET SIJOITUKSET TOP - 30
G9: 0 > 1 | J9: 1 > 2 | M9: 2 > 3 | P9: 3 > k | S9: Yhteensä
B10: Vuosi | C10: Sija | D10: Seura | E10: OTT | F10: KL | G10: YHT | H10: % | I10: KL | J10: YHT | K10: % | L10: KL | M10: YHT | N10: % | O10: KL | P10: YHT | Q10: % | R10: KL | S10: YHT | T10: % | V10: Vuosi | W10: Sija | X10: Seura | Y10: 0 > 1 | Z10: 1 > 2 | AA10: 2 > 3 | AB10: 3 > k | AC10: KL
B13: Yhteensä | E13: =SUM(E9:E12) -> 0 | F13: =SUM(F11:F12) -> 0 | G13: =SUM(G11:G12) -> 0 | H13: =PRODUCT(F13/G13) ->  | I13: =SUM(I11:I12) -> 0 | J13: =SUM(J11:J12) -> 0 | K13: =PRODUCT(I13/J13) ->  | L13: =SUM(L11:L12) -> 0 | M13: =SUM(M11:M12) -> 0 | N13: =PRODUCT(L13/M13) ->  | O13: =SUM(O11:O12) -> 0 | P13: =SUM(P11:P12) -> 0 | Q13: =PRODUCT(O13/P13) ->  | R13: =SUM(R11:R12) -> 0 | S13: =SUM(S11:S12) -> 0 | T13: =PRODUCT(R13/S13) -> 
B15: KÄRKILYÖNNIT
G16: 0 > 1 | J16: 1 > 2 | M16: 2 > 3 | P16: 3 > k | S16: Yhteensä
E17: OTT | F17: KL | G17: YHT | H17: % | I17: KL | J17: YHT | K17: % | L17: KL | M17: YHT | N17: % | O17: KL | P17: YHT | Q17: % | R17: KL | S17: YHT | T17: %
B18: RUNKOSARJA | E18: =PRODUCT(E6) -> 6 | F18: 0 | G18: 1 | H18: 0.0 % | I18: 0 | J18: 0 | L18: 0 | M18: 0 | O18: 0 | P18: 0 | R18: 0 | S18: 1 | T18: 0.0 %
B19: PLAY OFF | E19: =PRODUCT(E13) -> 0 | F19: =PRODUCT(F13) -> 0 | G19: 0 | I19: 0 | J19: 0 | L19: 0 | M19: 0 | O19: 0 | P19: 0 | R19: 0 | S19: 0
